bitfinex/quotes_SOLUSD_20250624
["timestamp","ask_amount","ask_price","bid_price","bid_amount"]
[1750725904543,5.70769071,144.15,144.11,41.38678649]
[1750725904739,5.70769071,144.14,144.11,28.74]
[1750725904922,41.85275303,144.16,144.11,28.74]
[1750725904923,5.70769071,144.13,144.11,28.74]
[1750725905336,5.70769071,144.13,144.1,6.3]
[1750725905537,5.70769071,144.12,144.11,28.74]
[1750725908558,18.64964886,144.14,144.11,28.74]
[1750725908747,5.70769071,144.12,144.11,28.74]
[1750725909256,5.70769071,144.13,144.11,28.74]
[1750725910442,5.70769071,144.12,144.11,28.74]
[1750725910853,5.70769071,144.12,144.08,13.43839071]
[1750725911057,5.70769071,144.1,144.06,6.3]
[1750725911247,5.70769071,144.09,144.07,28.74]
[1750725911443,5.70769071,144.09,144.06,6.3]
[1750725911646,5.70769071,144.09,144.07,28.74]
[1750725912533,18.64964886,144.12,144.07,28.74]
[1750725912854,26.14216157,144.13,144.07,28.74]
[1750725912855,5.70769071,144.11,144.07,28.74]
[1750725913058,5.70769071,144.1,144.07,28.74]
[1750725914136,5.70769071,144.11,144.07,35.6809362]
[1750725914451,5.70769071,144.11,144.07,28.74]
[1750725914762,5.70769071,144.09,144.07,28.74]
[1750725915450,5.70769071,144.1,144.07,28.74]
[1750725916578,5.70769071,144.11,144.07,35.68101817]
[1750725917070,5.70769071,144.12,144.07,41.38870888]
[1750725917277,5.70769071,144.12,144.07,130.78870888]
[1750725917972,5.11293932,144.13,144.08,5.70769071]
[1750725918175,5.70769071,144.13,144.09,28.72]
[1750725919875,5.70769071,144.12,144.09,28.72]
[1750725920756,5.70769071,144.12,144.09,35.66005712]
[1750725921881,5.70769071,144.13,144.09,35.66005712]
[1750725922180,5.70769071,144.14,144.09,42.96634783]
[1750725922359,5.11293932,144.15,144.11,5.70769071]
[1750725922562,5.11293932,144.15,144.12,40.72769071]
[1750725922875,16.44750442,144.16,144.12,35.02]
[1750725923779,10.73981371,144.16,144.12,35.02]
[1750725923953,5.70769071,144.13,144.12,35.02]
[1750725924152,5.70769071,144.14,144.12,35.02]
[1750725924383,5.11293932,144.14,144.12,35.02]
[1750725924576,21.56044374,144.16,144.12,35.02]
[1750725926056,5.70769071,144.15,144.12,35.02]
[1750725926656,5.70769071,144.13,144.12,35.02]
[1750725928774,5.70769071,144.14,144.12,35.02]
[1750725928958,10.82063003,144.14,144.12,35.02]
[1750725929278,5.70769071,144.14,144.12,35.02]
[1750725929477,10.82063003,144.14,144.12,35.02]
[1750725929668,5.70769071,144.14,144.12,35.02]
[1750725929868,10.82063003,144.14,144.12,35.02]
[1750725930076,5.70769071,144.14,144.12,35.02]
[1750725930457,10.82063003,144.15,144.12,35.02]
[1750725930876,5.11293932,144.14,144.12,35.02]
[1750725932088,5.70769071,144.13,144.09,1.5986]
[1750725932383,5.70769071,144.11,144.1,28.72]
[1750725932584,5.11293932,144.14,144.1,28.72]
[1750725932782,10.82063003,144.13,144.1,28.72]
[1750725933081,5.70769071,144.13,144.1,28.72]
[1750725934596,5.70769071,144.12,144.08,13.2204544]
[1750725934777,5.70769071,144.11,144.09,28.72]
[1750725935260,5.70769071,144.12,144.1,28.72]
[1750725935660,5.70769071,144.11,144.08,6.28]
[1750725935876,5.70769071,144.09,144.05,7.9011]
[1750725936075,5.70769071,144.07,144.06,28.7]
[1750725936392,5.70769071,144.08,144.06,28.7]
[1750725937065,5.70769071,144.08,144.05,6.28]
[1750725937262,5.70769071,144.08,144.06,28.72]
[1750725937674,5.70769071,144.08,144.05,6.28]
[1750725937882,5.70769071,144.08,144.06,28.7]
[1750725938091,5.70769071,144.08,144.05,6.28]
[1750725938289,5.70769071,144.08,144.06,28.7]
[1750725939086,5.70769071,144.08,144.05,6.28]
[1750725939391,5.70769071,144.08,144.06,28.7]
[1750725939594,5.70769071,144.08,144.05,6.28]
[1750725939789,5.70769071,144.06,144.02,6.2689]
[1750725939995,5.70769071,144.05,144.04,28.7]
[1750725940989,5.70769071,144.05,144.02,12.5489]
[1750725941188,5.70769071,144.05,144.04,28.7]
[1750725941576,18.64964886,144.07,144.04,28.7]
[1750725941577,5.70769071,144.06,144.04,28.7]
[1750725943588,5.70769071,144.06,144.02,13.22336991]
[1750725943792,5.70769071,144.03,144.02,28.7]
[1750725945198,5.70769071,144.03,144.0,6.28]
[1750725945376,18.64964886,144.05,144.02,28.7]
[1750725945696,5.11293932,144.06,144.0,6.28]
[1750725945697,5.70769071,144.03,144.0,6.28]
[1750725945899,5.70769071,144.02,144.01,28.72]
[1750725948682,0.14216157,144.04,144.0,35.0]
[1750725948874,5.70769071,144.01,144.0,35.0]
[1750725949088,5.70769071,144.01,144.0,6.28]
[1750725949476,5.70769071,144.01,144.0,35.0]
[1750725951404,5.70769071,144.01,143.96,40.18870715]
[1750725951593,5.70769071,144.01,143.97,35.0]
[1750725951901,5.70769071,144.01,143.98,28.72]
[1750725952777,5.70769071,144.02,143.98,28.72]
[1750725953586,5.70769071,144.02,143.98,34.42769071]
[1750725954003,5.70769071,144.02,143.98,41.37300607]
[1750725954595,5.70769071,144.03,143.98,41.37300607]
[1750725956296,18.64964886,144.05,143.98,41.37300607]
[1750725956496,5.70769071,144.06,144.01,5.70769071]
[1750725956694,5.70769071,144.06,144.02,28.7]
[1750725957422,5.70769071,144.05,144.02,28.7]
[1750725958110,26.0,144.07,144.02,28.7]
[1750725958309,5.70769071,144.05,144.02,28.7]
[1750725959718,5.70769071,144.04,144.02,28.7]
[1750725960015,18.79181043,144.06,143.97,6.28]
[1750725960016,5.70769071,144.03,143.97,6.28]
[1750725960319,5.70769071,144.01,143.98,28.7]
[1750725960521,26.0,144.04,143.98,28.7]
[1750725960522,5.70769071,144.02,143.98,28.7]
[1750725960808,31.70769071,144.04,143.99,5.70769071]
[1750725961223,5.70769071,144.03,143.98,34.40769071]
[1750725961593,5.70769071,144.03,143.98,41.35263585]
[1750725961794,5.70769071,144.03,143.98,35.64494514]
[1750725962018,5.70769071,144.02,143.98,35.64494514]
[1750725962199,5.70769071,144.01,143.98,28.7]
[1750725962393,5.70769071,144.0,143.97,6.28]
[1750725962600,5.70769071,144.0,143.99,28.7]
[1750725962920,5.70769071,144.01,143.99,28.7]
[1750725963314,5.70769071,144.02,143.99,28.7]
[1750725964230,1.6406,144.06,143.99,41.35253832]
[1750725964454,5.70769071,144.04,143.99,41.35253832]
[1750725964924,5.70769071,144.03,143.99,35.64484761]
[1750725965121,5.70769071,144.03,143.99,28.7]
[1750725965325,5.70769071,144.02,143.99,28.7]
[1750725966024,5.70769071,144.02,143.99,35.64490465]
[1750725967214,5.70769071,144.02,143.99,28.7]
[1750725970201,5.70769071,144.03,143.99,28.7]
[1750725972224,5.70769071,144.03,143.99,35.64489805]
[1750725972526,5.70769071,144.03,143.99,41.35258876]
[1750725972695,5.70769071,144.03,143.99,34.40769071]
[1750725973197,5.70769071,144.03,143.99,41.35257972]
[1750725973395,5.70769071,144.03,143.99,35.64488901]
[1750725975327,5.70769071,144.03,143.99,28.7]
[1750725976120,5.70769071,144.03,143.99,35.64488094]
[1750725979627,5.70769071,144.03,143.99,28.7]
[1750725980710,5.70769071,144.02,143.99,28.7]
[1750725981024,5.1308131,144.04,144.0,28.68]
[1750725981230,5.70769071,144.03,144.0,28.68]
[1750725982404,5.70769071,144.03,143.97,13.22583926]
[1750725982605,5.70769071,143.98,143.93,6.28]
[1750725982829,5.1308131,144.0,143.94,28.68]
[1750725983026,31.70769071,144.01,143.96,5.70769071]
[1750725983217,31.70769071,144.01,143.97,28.68]
[1750725983825,26.0,144.01,143.97,28.68]
[1750725984027,36.83850381,144.01,143.97,28.68]
[1750725984336,31.70769071,144.01,143.97,28.68]
[1750725984834,36.83850381,144.01,143.97,28.68]
[1750725985136,31.70769071,144.01,143.97,28.68]
[1750725985314,5.70769071,144.0,143.97,28.68]
[1750725988148,5.1308131,144.02,143.97,41.33344201]
[1750725988314,5.70769071,144.02,143.97,41.33344201]
[1750725988513,5.70769071,144.02,143.98,11.98769071]
[1750725988514,5.1308131,144.02,143.98,11.98769071]
[1750725988933,5.1308131,144.02,143.99,5.70769071]
[1750725989121,5.1308131,144.03,144.0,28.68]
[1750725989325,5.70769071,144.04,144.0,34.38769071]
[1750725989641,10.83850381,144.04,144.0,34.38769071]
[1750725990024,5.70769071,144.04,144.0,34.38769071]
[1750725990333,5.1308131,144.05,144.02,5.70769071]
[1750725990632,5.1308131,144.05,144.03,28.68]
[1750725992334,10.83850381,144.05,144.03,28.68]
[1750725992546,5.70769071,144.04,144.03,28.68]
[1750725993027,5.70769071,144.05,144.03,28.68]
[1750725993344,10.83850381,144.05,144.03,28.68]
[1750725993639,5.70769071,144.05,144.03,28.68]
[1750725993816,10.83850381,144.05,144.03,28.68]
[1750725994016,5.70769071,144.05,144.03,28.68]
[1750725994227,10.83850381,144.05,144.03,28.68]
[1750725994453,44.64964886,144.07,143.98,89.4]
[1750725994454,5.70769071,144.04,143.98,89.4]
[1750725994638,10.83850381,144.03,144.01,28.68]
[1750725994844,5.70769071,144.03,144.01,28.68]
[1750725995742,10.83850381,144.03,144.01,28.68]
[1750725995923,5.70769071,144.03,144.01,28.68]
[1750725999935,5.1308131,144.05,144.01,28.68]
[1750725999936,5.1308131,144.04,144.01,28.68]
[1750726000939,5.1308131,144.05,144.01,41.33165016]
[1750726001142,5.1308131,144.06,144.03,5.70769071]
[1750726001438,10.83850381,144.08,144.04,34.38769071]
[1750726001641,10.83850381,144.07,144.04,28.68]
[1750726001816,5.1308131,144.06,144.04,28.68]
[1750726003029,5.70769071,144.07,144.04,28.68]
[1750726003222,10.83850381,144.07,144.04,28.68]
[1750726003547,10.83850381,144.08,144.04,34.38769071]
[1750726003745,5.70769071,144.08,144.05,6.26]
[1750726004331,5.1308131,144.09,144.05,11.96769071]
[1750726004646,10.83850381,144.12,144.07,5.70769071]
[1750726004839,5.1308131,144.11,144.08,34.36769071]
[1750726005037,10.83850381,144.13,144.09,5.70769071]
[1750726005226,5.70769071,144.13,144.09,5.70769071]
[1750726005942,5.70769071,144.14,144.09,5.70769071]
[1750726006128,10.83850381,144.15,144.11,5.70769071]
[1750726006441,5.70769071,144.15,144.12,28.66]
[1750726007630,10.73981371,144.16,144.12,28.66]
[1750726007832,16.44750442,144.16,144.12,28.66]
[1750726009243,5.70769071,144.15,144.12,28.66]
[1750726012850,5.70769071,144.14,144.12,28.66]
[1750726013439,5.70769071,144.13,144.12,28.66]
[1750726017354,18.64964886,144.15,144.12,28.66]
[1750726017763,5.70769071,144.13,144.12,28.66]
[1750726019759,18.64964886,144.12,144.11,6.26]
[1750726020053,24.49950114,144.12,144.11,6.26]
[1750726020459,24.49950114,144.12,144.06,6.26]
[1750726020460,26.0,144.09,144.06,6.26]
[1750726020760,18.64964886,144.06,144.05,28.64]
[1750726020940,24.35733957,144.06,144.05,28.64]
[1750726021148,24.49950114,144.06,144.05,28.64]
[1750726021450,24.49950114,144.06,144.03,28.64]
[1750726021649,5.70769071,144.04,144.03,28.64]
[1750726023749,5.70769071,144.05,144.03,28.64]
[1750726024154,5.70769071,144.06,144.03,28.64]
[1750726024949,18.64964886,144.1,144.04,5.70769071]
[1750726025142,5.70769071,144.08,144.04,5.70769071]
[1750726025651,5.70769071,144.08,144.04,12.64998393]
[1750726025852,5.70769071,144.08,144.04,6.94229322]
[1750726026053,18.64964886,144.1,144.04,12.64998393]
[1750726026263,5.70769071,144.08,144.04,12.64998393]
[1750726027670,5.70769071,144.08,144.04,6.94229322]
[1750726027871,5.70769071,144.08,144.04,12.64998393]
[1750726028661,5.70769071,144.09,144.05,5.70769071]
[1750726028852,5.70769071,144.09,144.06,28.64]
[1750726029257,5.70769071,144.1,144.06,30.1417]
[1750726029470,5.70769071,144.1,144.06,37.08310415]
[1750726029767,5.70769071,144.09,144.06,37.08310415]
[1750726030553,5.70769071,144.09,144.06,30.1417]
[1750726030748,5.70769071,144.07,144.06,28.64]
[1750726030961,24.35733957,144.07,144.06,28.64]
[1750726032382,5.70769071,144.07,144.06,28.64]
[1750726032594,5.70769071,144.08,144.06,28.64]
[1750726033672,26.0,144.09,144.06,28.64]
[1750726033673,5.70769071,144.09,144.06,28.64]
[1750726033878,5.70769071,144.09,144.06,35.58140752]
[1750726034772,44.64964886,144.12,144.06,35.58140752]
[1750726034975,5.70769071,144.09,144.06,35.58140752]
[1750726035352,5.70769071,144.09,144.06,28.64]
[1750726035560,5.70769071,144.07,144.06,28.64]
[1750726035753,0.14216157,144.11,144.06,28.64]
[1750726035951,5.70769071,144.07,144.06,28.64]
[1750726036175,5.70769071,144.09,144.06,28.64]
[1750726040958,26.0,144.1,144.06,35.58154492]
[1750726041283,31.70769071,144.1,144.06,35.58154492]
[1750726042083,26.0,144.1,144.06,35.58154492]
[1750726042257,31.70769071,144.1,144.06,35.58154492]
[1750726042676,5.70769071,144.09,144.06,28.64]
[1750726043464,5.70769071,144.1,144.06,35.58151469]
[1750726043857,5.70769071,144.09,144.06,28.64]
[1750726044074,5.70769071,144.07,144.06,28.64]
[1750726044280,24.35733957,144.07,144.06,28.64]
[1750726044471,24.35733957,144.07,144.05,28.64]
[1750726044671,5.70769071,144.06,144.05,28.64]
[1750726045181,5.70769071,144.06,144.04,28.64]
[1750726045370,5.70769071,144.05,144.03,28.64]
[1750726045570,5.70769071,144.04,144.03,28.64]
[1750726045972,5.70769071,144.04,144.02,6.24]
[1750726046159,23.91718088,144.07,144.03,28.64]
[1750726046359,5.70769071,144.05,144.03,28.64]
[1750726048691,5.70769071,144.06,144.03,28.64]
[1750726049186,5.70769071,144.05,144.03,28.64]
[1750726050265,18.64964886,144.07,144.03,28.64]
[1750726050468,5.70769071,144.04,144.03,28.64]
[1750726051179,0.14216157,144.06,144.03,28.64]
[1750726051394,5.70769071,144.04,144.03,28.64]
[1750726051778,5.70769071,144.04,144.02,6.24]
[1750726052092,5.70769071,144.03,144.02,34.88]
[1750726052591,24.35733957,144.03,144.02,6.24]
[1750726052981,24.35733957,144.03,144.01,28.64]
[1750726053178,24.35733957,144.02,144.0,28.64]
[1750726053379,24.35733957,144.01,144.0,28.64]
[1750726053577,24.35733957,144.01,143.97,6.24]
[1750726053890,5.70769071,143.98,143.97,6.24]
[1750726054088,5.70769071,143.98,143.97,34.88]
[1750726054887,5.70769071,143.99,143.97,34.88]
[1750726055084,5.70769071,143.98,143.97,6.24]
[1750726055302,5.70769071,143.98,143.92,12.3068]
[1750726055303,18.64964886,143.97,143.92,12.3068]
[1750726055467,5.70769071,143.95,143.93,28.64]
[1750726055667,5.70769071,143.94,143.93,28.64]
[1750726055901,5.70769071,143.94,143.92,6.24]
[1750726056097,5.70769071,143.94,143.93,28.64]
[1750726056998,5.70769071,143.94,143.92,6.24]
[1750726057369,5.70769071,143.93,143.92,34.88]
[1750726057679,5.70769071,143.93,143.89,51.0868]
[1750726057885,26.14216157,143.96,143.89,51.0868]
[1750726057886,5.70769071,143.92,143.89,51.0868]
[1750726058190,5.70769071,143.93,143.89,51.0868]
[1750726058413,5.70769071,143.93,143.9,28.64]
[1750726058719,5.70769071,143.93,143.91,28.64]
[1750726058999,5.70769071,143.92,143.91,28.64]
[1750726059803,18.64964886,143.91,143.89,28.64]
[1750726060104,5.70769071,143.97,143.9,8.2146]
[1750726060406,5.70769071,143.93,143.9,8.2146]
[1750726060590,18.64964886,143.96,143.91,28.74]
[1750726061099,5.70769071,143.93,143.91,28.74]
[1750726061680,18.64964886,143.92,143.83,95.97789325]
[1750726061880,5.70769071,143.89,143.84,34.42769071]
[1750726062087,44.64964886,143.92,143.84,28.72]
[1750726062301,5.70769071,143.86,143.83,89.02529926]
[1750726062506,5.70769071,143.86,143.84,28.82]
[1750726063108,5.70769071,143.87,143.84,28.82]
[1750726063315,26.0,143.89,143.84,28.82]
[1750726063316,5.70769071,143.88,143.84,28.82]
[1750726063484,5.70769071,143.86,143.83,178.42529926]
[1750726063679,5.70769071,143.86,143.85,28.82]
[1750726063983,5.70769071,143.86,143.83,117.84529926]
[1750726064178,5.70769071,143.84,143.83,117.84529926]
[1750726064614,5.70769071,143.84,143.83,117.86529926]
[1750726065407,5.70769071,143.84,143.83,89.02529926]
[1750726065916,5.70769071,143.84,143.83,117.86529926]
[1750726066895,5.70769071,143.85,143.83,117.86529926]
[1750726067221,18.79181043,143.88,143.83,117.86529926]
[1750726067524,5.70769071,143.86,143.83,117.86529926]
[1750726068818,5.70769071,143.88,143.84,5.70769071]
[1750726068998,5.70769071,143.89,143.85,34.52769071]
[1750726069192,5.70769071,143.89,143.86,6.95120255]
[1750726069411,5.70769071,143.9,143.87,28.82]
[1750726071195,5.70769071,143.88,143.87,28.82]
[1750726073127,5.70769071,143.89,143.87,28.82]
[1750726073294,0.14216157,143.9,143.85,28.8]
[1750726073500,5.70769071,143.86,143.85,28.8]
[1750726075526,5.70769071,143.86,143.83,117.90529926]
[1750726075726,5.70769071,143.84,143.83,117.90529926]
[1750726075940,24.35733957,143.84,143.83,89.02529926]
[1750726076127,5.70769071,143.84,143.81,35.1]
[1750726076324,5.70769071,143.82,143.81,35.1]
[1750726076816,18.64964886,143.81,143.76,6.24]
[1750726077043,5.70769071,143.77,143.76,6.24]
[1750726077215,5.70769071,143.77,143.76,35.1]
[1750726077825,5.70769071,143.77,143.72,5.93017021]
[1750726077826,5.70769071,143.77,143.72,0.2224795]
[1750726078028,18.64964886,143.76,143.73,28.92]
[1750726078230,5.70769071,143.75,143.73,28.92]
[1750726078940,5.70769071,143.74,143.72,0.2224795]
[1750726079115,0.14216157,143.75,143.72,29.1624795]
[1750726079323,5.70769071,143.73,143.72,29.1624795]
[1750726079642,0.14216157,143.73,143.72,0.2224795]
[1750726079799,5.84985228,143.73,143.72,0.2224795]
[1750726080204,34.71120953,143.73,143.72,0.2224795]
[1750726080412,53.36085839,143.73,143.72,0.2224795]
[1750726080820,8.56904796,143.82,143.72,0.2224795]
[1750726081125,8.56904796,143.74,143.72,29.2424795]
[1750726081336,8.56904796,143.73,143.72,29.2424795]
[1750726081716,8.56904796,143.74,143.72,29.2424795]
[1750726081923,8.56904796,143.75,143.72,29.2424795]
[1750726082240,8.56904796,143.74,143.72,29.2424795]
[1750726082544,26.0,143.77,143.72,29.2424795]
[1750726082710,8.56904796,143.75,143.72,29.2424795]
[1750726083708,26.0,143.77,143.72,36.20036052]
[1750726083908,8.56904796,143.76,143.72,36.20036052]
[1750726084118,8.56904796,143.75,143.72,29.2424795]
[1750726084577,26.0,143.77,143.72,36.20035102]
[1750726084578,8.56904796,143.76,143.72,36.20035102]
[1750726084743,8.56904796,143.76,143.72,29.2424795]
[1750726085035,8.56904796,143.75,143.72,29.2424795]
[1750726085228,8.56904796,143.74,143.72,29.2424795]
[1750726085529,8.56904796,143.75,143.72,29.2424795]
[1750726086226,8.56904796,143.74,143.72,29.2424795]
[1750726087933,8.56904796,143.75,143.72,29.2424795]
[1750726088635,8.56904796,143.74,143.72,29.2424795]
[1750726088810,0.14216157,143.77,143.72,29.2424795]
[1750726089013,8.56904796,143.74,143.72,29.2424795]
[1750726089937,8.56904796,143.76,143.72,36.20022449]
[1750726092059,18.64964886,143.78,143.72,44.76927245]
[1750726092343,8.56904796,143.79,143.74,8.56904796]
[1750726092635,18.42189154,143.82,143.75,28.98]
[1750726092831,8.56904796,143.81,143.76,8.56904796]
[1750726093029,8.56904796,143.8,143.76,8.56904796]
[1750726093242,8.56904796,143.8,143.75,28.98]
[1750726093416,8.56904796,143.76,143.75,28.98]
[1750726093616,18.64964886,143.79,143.75,28.98]
[1750726093840,8.56904796,143.78,143.75,28.98]
[1750726094410,8.56904796,143.77,143.75,28.98]
[1750726094611,8.56904796,143.78,143.75,28.98]
[1750726094825,26.0,143.79,143.75,28.98]
[1750726095031,8.56904796,143.78,143.75,28.98]
[1750726098030,8.56904796,143.77,143.75,28.98]
[1750726099764,18.64964886,143.68,143.6,16.28984796]
[1750726100059,18.64964886,143.68,143.57,27.52904796]
[1750726100060,18.79181043,143.63,143.57,27.52904796]
[1750726100356,5.72148113,143.6,143.58,29.02]
[1750726100557,5.72148113,143.62,143.58,29.02]
[1750726100858,5.72148113,143.6,143.58,29.02]
[1750726101031,44.79181043,143.63,143.58,29.02]
[1750726101236,5.72148113,143.6,143.58,29.02]
[1750726101574,5.72148113,143.61,143.58,29.02]
[1750726102151,5.72148113,143.68,143.58,29.02]
[1750726102339,18.64964886,143.69,143.6,8.57665611]
[1750726102654,34.57665611,143.66,143.61,37.61665611]
[1750726102957,34.57665611,143.66,143.62,29.06]
[1750726103161,8.57665611,143.65,143.62,29.06]
[1750726103960,8.57665611,143.63,143.62,29.06]
[1750726105048,34.57665611,143.63,143.59,29.06]
[1750726105245,8.57665611,143.61,143.59,29.06]
[1750726105450,8.57665611,143.6,143.59,29.06]
[1750726105962,8.57665611,143.61,143.59,29.06]
[1750726106861,26.0,143.63,143.59,29.06]
[1750726107089,8.57665611,143.62,143.59,29.06]
[1750726107269,26.0,143.63,143.59,29.06]
[1750726107443,32.07448187,143.73,143.59,37.63665611]
[1750726107444,12.66497088,143.72,143.59,37.63665611]
[1750726107642,8.57665611,143.64,143.59,37.63665611]
[1750726107959,8.57665611,143.64,143.59,44.6009247]
[1750726108161,8.57665611,143.64,143.6,8.57665611]
[1750726108667,34.57665611,143.65,143.6,8.57665611]
[1750726109061,8.57665611,143.65,143.6,8.57665611]
[1750726109369,8.57665611,143.66,143.61,8.57665611]
[1750726109580,29.57934648,143.68,143.62,29.04]
[1750726109746,8.57665611,143.65,143.62,29.04]
[1750726111271,8.57665611,143.64,143.62,29.04]
[1750726111568,18.79181043,143.67,143.62,29.04]
[1750726111949,8.57665611,143.64,143.62,29.04]
[1750726112363,8.57665611,143.63,143.62,29.04]
[1750726115977,8.57665611,143.64,143.62,29.04]
[1750726116471,18.79181043,143.67,143.62,29.04]
[1750726116775,3.43718491,143.68,143.62,29.04]
[1750726116955,8.57665611,143.66,143.62,29.04]
[1750726117163,8.57665611,143.66,143.62,37.61665611]
[1750726117364,8.57665611,143.66,143.62,29.04]
[1750726117751,8.57665611,143.66,143.62,37.61665611]
[1750726117959,6.1038,143.73,143.63,8.57665611]
[1750726118268,23.39570972,143.77,143.68,8.57665611]
[1750726118269,8.57665611,143.72,143.68,8.57665611]
[1750726118471,8.57665611,143.71,143.69,29.04]
[1750726118872,8.57665611,143.7,143.69,29.04]
[1750726119274,8.57665611,143.7,143.66,29.04]
[1750726119475,8.57665611,143.69,143.66,29.04]
[1750726120078,18.79181043,143.72,143.66,29.04]
[1750726120383,8.57665611,143.69,143.66,29.04]
[1750726120573,0.14216157,143.72,143.66,37.61665611]
[1750726120879,8.57665611,143.71,143.66,37.61665611]
[1750726121383,8.57665611,143.71,143.67,8.57665611]
[1750726121575,8.57665611,143.72,143.67,8.57665611]
[1750726121949,8.57665611,143.72,143.67,15.53683216]
[1750726122577,8.57665611,143.72,143.67,8.57665611]
[1750726123181,8.57665611,143.71,143.67,8.57665611]
[1750726124083,0.14216157,143.73,143.67,8.57665611]
[1750726124286,8.57665611,143.71,143.67,8.57665611]
[1750726124472,34.57665611,143.68,143.59,8.1723]
[1750726124657,18.79181043,143.67,143.59,8.1723]
[1750726124857,8.57665611,143.65,143.6,37.71665611]
[1750726125058,8.57665611,143.66,143.61,8.57665611]
[1750726125659,18.79181043,143.7,143.6,29.14]
[1750726125660,0.14216157,143.7,143.63,8.57665611]
[1750726125860,8.57665611,143.68,143.64,35.8]
[1750726126167,8.57665611,143.67,143.64,35.8]
[1750726126562,8.57665611,143.68,143.64,35.8]
[1750726126767,8.57665611,143.69,143.64,51.33814282]
[1750726127081,26.0,143.72,143.64,51.33814282]
[1750726127269,26.0,143.7,143.64,51.33814282]
[1750726127473,34.57665611,143.71,143.66,8.57665611]
[1750726127679,8.57665611,143.72,143.67,16.43315611]
[1750726127894,34.57665611,143.72,143.68,29.38]
[1750726128078,8.57665611,143.71,143.68,29.38]
[1750726129577,0.14216157,143.72,143.68,29.38]
[1750726129777,18.64964886,143.79,143.69,8.57665611]
[1750726130086,8.57665611,143.74,143.69,8.57665611]
[1750726130677,8.57665611,143.74,143.68,36.3397786]
[1750726131080,1.68011303,143.83,143.7,8.57665611]
[1750726131280,8.57665611,143.76,143.71,8.57665611]
[1750726131484,8.57665611,143.75,143.72,29.38]
[1750726132074,8.57665611,143.73,143.7,6.44]
[1750726132281,18.64964886,143.72,143.67,29.36]
[1750726132588,26.0,143.74,143.67,29.36]
[1750726132589,8.57665611,143.71,143.67,29.36]
[1750726132773,18.79181043,143.73,143.67,29.36]
[1750726132980,8.57665611,143.71,143.67,29.36]
[1750726134286,8.57665611,143.71,143.67,36.32014422]
[1750726134495,8.57665611,143.72,143.67,36.32014422]
[1750726134787,8.57665611,143.72,143.67,44.89680033]
[1750726136686,8.57665611,143.73,143.68,8.57665611]
[1750726136886,8.57665611,143.74,143.69,8.57665611]
[1750726137133,8.57665611,143.74,143.7,29.38]
[1750726137273,8.57665611,143.75,143.7,37.95665611]
[1750726137875,8.57665611,143.72,143.7,29.38]
[1750726138375,0.14216157,143.74,143.7,29.38]
[1750726138573,8.57665611,143.71,143.7,29.38]
[1750726138787,8.57665611,143.71,143.68,29.38]
[1750726138986,34.57665611,143.73,143.68,37.95665611]
[1750726139386,8.57665611,143.72,143.68,29.38]
[1750726140795,8.57665611,143.72,143.68,36.33988572]
[1750726141003,3.40808892,143.76,143.68,44.91654183]
[1750726141211,18.64964886,143.79,143.7,8.57665611]
[1750726141387,8.57665611,143.76,143.71,37.93665611]
[1750726141581,8.57665611,143.76,143.71,29.36]
[1750726141788,8.57665611,143.75,143.71,29.36]
[1750726142006,8.57665611,143.74,143.71,29.36]
[1750726142309,8.57665611,143.72,143.71,29.36]
[1750726142505,8.57665611,143.72,143.69,29.36]
[1750726142709,8.57665611,143.7,143.69,29.36]
[1750726143199,8.57665611,143.7,143.66,6.44]
[1750726143394,8.57665611,143.7,143.67,29.36]
[1750726144092,8.57665611,143.68,143.66,6.44]
[1750726144295,0.14216157,143.69,143.66,6.44]
[1750726144296,8.57665611,143.67,143.66,6.44]
[1750726145005,34.57665611,143.67,143.63,29.36]
[1750726145210,26.0,143.67,143.61,6.44]
[1750726145390,8.57665611,143.65,143.62,29.36]
[1750726146286,8.57665611,143.65,143.61,6.44]
[1750726146586,26.0,143.67,143.62,29.38]
[1750726146798,8.57665611,143.65,143.62,29.38]
[1750726147219,8.57665611,143.66,143.62,36.3427963]
[1750726147710,8.57665611,143.67,143.62,44.91945241]